[Event "Early-Titled-Tuesday-Blitz-July-09-2024"]
[Site "Chess.com"]
[Date "2024.07.09"]
[Round "5"]
[White "GMAneta"]
[Black "nrvisakh"]
[Result "0-1"]
[WhiteElo "2634"]
[BlackElo "2922"]
[TimeControl "180+1"]
[EndTime "8:55:25 PDT"]
[Termination "nrvisakh won by resignation"]

1. d4 {[%clk 0:02:49.3]} 1... d6 {[%clk 0:02:53.2]} 2. Nf3 {[%clk 0:02:49.2]}
2... Nf6 {[%clk 0:02:52.8]} 3. c4 {[%clk 0:02:49.3]} 3... g6 {[%clk 0:02:52.7]}
4. g3 {[%clk 0:02:49.2]} 4... Bg7 {[%clk 0:02:52.9]} 5. Bg2 {[%clk 0:02:49.4]}
5... O-O {[%clk 0:02:52.3]} 6. O-O {[%clk 0:02:49.9]} 6... Bf5 {[%clk 0:02:45]}
7. Nc3 {[%clk 0:02:48.8]} 7... Ne4 {[%clk 0:02:44.5]} 8. Nd5 {[%clk 0:02:46.4]}
8... c6 {[%clk 0:02:33]} 9. Ne3 {[%clk 0:02:45.7]} 9... Bc8 {[%clk 0:02:33]} 10.
Qc2 {[%clk 0:02:44]} 10... Nf6 {[%clk 0:02:31.6]} 11. b4 {[%clk 0:02:39.1]}
11... a5 {[%clk 0:02:29.5]} 12. b5 {[%clk 0:02:39.1]} 12... Ng4 {[%clk
0:02:25.8]} 13. Nxg4 {[%clk 0:02:28.3]} 13... Bxg4 {[%clk 0:02:25.3]} 14. Bb2
{[%clk 0:02:24.2]} 14... cxb5 {[%clk 0:02:23.5]} 15. cxb5 {[%clk 0:02:24.1]}
15... Nd7 {[%clk 0:02:23.2]} 16. Rac1 {[%clk 0:02:23.9]} 16... Nf6 {[%clk
0:02:20.9]} 17. Qc7 {[%clk 0:02:22.6]} 17... Rb8 {[%clk 0:02:15.7]} 18. h3
{[%clk 0:02:18.5]} 18... Qxc7 {[%clk 0:02:07.8]} 19. Rxc7 {[%clk 0:02:16.3]}
19... Nd5 {[%clk 0:02:08.4]} 20. Rcc1 {[%clk 0:02:07.4]} 20... Bd7 {[%clk
0:02:07.6]} 21. Ng5 {[%clk 0:02:03.3]} 21... Nb6 {[%clk 0:02:06.8]} 22. Rc7
{[%clk 0:01:59.3]} 22... Bxb5 {[%clk 0:02:03.8]} 23. Rxb7 {[%clk 0:01:54.8]}
23... Rxb7 {[%clk 0:01:50.9]} 24. Bxb7 {[%clk 0:01:54.1]} 24... Bxe2 {[%clk
0:01:46.8]} 25. Re1 {[%clk 0:01:53.1]} 25... Bc4 {[%clk 0:01:47.4]} 26. Bc3
{[%clk 0:01:48.1]} 26... Rb8 {[%clk 0:01:43.6]} 27. Bf3 {[%clk 0:01:42.1]} 27...
Bxa2 {[%clk 0:01:35.5]} 28. Ra1 {[%clk 0:01:41.1]} 28... Na4 {[%clk 0:01:27.5]}
29. Rxa2 {[%clk 0:01:38.7]} 29... Nxc3 {[%clk 0:01:26.6]} 30. Rxa5 {[%clk
0:01:38.7]} 30... Bxd4 {[%clk 0:01:26.2]} 31. Kg2 {[%clk 0:01:34.5]} 31... Rb2
{[%clk 0:01:22.2]} 0-1

[Event "Early-Titled-Tuesday-Blitz-July-09-2024"]
[Site "Chess.com"]
[Date "2024.07.09"]
[Round "5"]
[White "Os55555"]
[Black "HelenaWalker2912"]
[Result "1-0"]
[WhiteElo "2321"]
[BlackElo "2495"]
[TimeControl "180+1"]
[EndTime "8:55:34 PDT"]
[Termination "Os55555 won by resignation"]

1. b3 {[%clk 0:02:59]} 1... d5 {[%clk 0:03:00]} 2. Bb2 {[%clk 0:02:58.4]} 2...
Bf5 {[%clk 0:03:00.2]} 3. e3 {[%clk 0:02:58.1]} 3... e6 {[%clk 0:03:00.4]} 4.
Nf3 {[%clk 0:02:57.6]} 4... Nf6 {[%clk 0:03:01]} 5. g3 {[%clk 0:02:55.9]} 5...
c6 {[%clk 0:03:00.8]} 6. Bg2 {[%clk 0:02:56.1]} 6... h6 {[%clk 0:03:01]} 7. O-O
{[%clk 0:02:55.7]} 7... Nbd7 {[%clk 0:03:01.7]} 8. d3 {[%clk 0:02:55.8]} 8...
Be7 {[%clk 0:03:01.6]} 9. c4 {[%clk 0:02:56]} 9... O-O {[%clk 0:03:02]} 10. Nc3
{[%clk 0:02:50.7]} 10... a5 {[%clk 0:03:02.4]} 11. a3 {[%clk 0:02:49.3]} 11...
Qb8 {[%clk 0:03:01.8]} 12. Qd2 {[%clk 0:02:29.9]} 12... b5 {[%clk 0:02:59.7]}
13. Nd4 {[%clk 0:02:26.9]} 13... Rc8 {[%clk 0:02:31.8]} 14. cxb5 {[%clk
0:02:20.3]} 14... cxb5 {[%clk 0:02:31.2]} 15. Nxf5 {[%clk 0:02:18.7]} 15... exf5
{[%clk 0:02:31.3]} 16. Nxd5 {[%clk 0:02:18.9]} 16... Nxd5 {[%clk 0:02:31.9]} 17.
Bxd5 {[%clk 0:02:17.9]} 17... Ra7 {[%clk 0:02:32.3]} 18. Rfc1 {[%clk 0:02:10.3]}
18... Rac7 {[%clk 0:02:24.2]} 19. Qxa5 {[%clk 0:02:02.3]} 19... Nc5 {[%clk
0:02:16.6]} 20. Be5 {[%clk 0:01:55.4]} 20... Ra7 {[%clk 0:01:50.4]} 21. Qc3
{[%clk 0:01:31]} 21... b4 {[%clk 0:01:24.4]} 22. Bxb8 {[%clk 0:01:26.9]} 22...
bxc3 {[%clk 0:01:24.2]} 23. Bxa7 {[%clk 0:01:27.1]} 23... Nxd3 {[%clk
0:01:24.5]} 24. Rc2 {[%clk 0:01:22.5]} 24... Bf6 {[%clk 0:01:18.4]} 25. Bd4
{[%clk 0:01:09.9]} 25... Bxd4 {[%clk 0:01:17.8]} 26. exd4 {[%clk 0:01:10.8]}
26... Kf8 {[%clk 0:01:17.8]} 27. Bc4 {[%clk 0:01:10.7]} 27... Nb2 {[%clk
0:01:15.9]} 28. Rxc3 {[%clk 0:01:10.7]} 1-0

[Event "Early-Titled-Tuesday-Blitz-July-09-2024"]
[Site "Chess.com"]
[Date "2024.07.09"]
[Round "5"]
[White "Bauman_Guy"]
[Black "Alex_Banzea"]
[Result "1-0"]
[WhiteElo "2958"]
[BlackElo "2702"]
[TimeControl "180+1"]
[EndTime "8:55:36 PDT"]
[Termination "Bauman_Guy won by resignation"]

1. e4 {[%clk 0:03:00.9]} 1... c6 {[%clk 0:02:49.2]} 2. d4 {[%clk 0:02:58.8]}
2... d5 {[%clk 0:02:49.6]} 3. e5 {[%clk 0:02:59.5]} 3... Bf5 {[%clk 0:02:41.7]}
4. Bd3 {[%clk 0:02:58.2]} 4... Bxd3 {[%clk 0:02:41.6]} 5. Qxd3 {[%clk
0:02:59.1]} 5... e6 {[%clk 0:02:42.3]} 6. Ne2 {[%clk 0:02:59.2]} 6... Qa5+
{[%clk 0:02:36.3]} 7. Nd2 {[%clk 0:02:59.2]} 7... Qa6 {[%clk 0:02:36.7]} 8. c4
{[%clk 0:02:59.3]} 8... dxc4 {[%clk 0:02:16.3]} 9. Nxc4 {[%clk 0:03:00.2]} 9...
Bb4+ {[%clk 0:02:14.7]} 10. Bd2 {[%clk 0:03:00]} 10... Bxd2+ {[%clk 0:02:14]}
11. Kxd2 {[%clk 0:03:00.9]} 11... Kf8 {[%clk 0:01:31.1]} 12. Nd6 {[%clk
0:02:55.8]} 12... Qxd3+ {[%clk 0:01:07.3]} 13. Kxd3 {[%clk 0:02:56.7]} 13... Na6
{[%clk 0:01:07.4]} 14. Rhc1 {[%clk 0:02:49.6]} 14... Ne7 {[%clk 0:00:47.2]} 15.
Nxb7 {[%clk 0:02:42.1]} 15... Rb8 {[%clk 0:00:47.3]} 16. Na5 {[%clk 0:02:42.8]}
16... Rxb2 {[%clk 0:00:45]} 17. Rab1 {[%clk 0:02:42.7]} 17... Rxa2 {[%clk
0:00:18.6]} 18. Nxc6 {[%clk 0:02:37.3]} 18... Nxc6 {[%clk 0:00:19.5]} 19. Rxc6
{[%clk 0:02:37.4]} 19... g6 {[%clk 0:00:20]} 20. Nc3 {[%clk 0:02:31.5]} 20...
Ra3 {[%clk 0:00:12.5]} 21. Kd2 {[%clk 0:02:29.8]} 21... Kg7 {[%clk 0:00:12]} 22.
Ne4 {[%clk 0:02:29.1]} 22... Ra2+ {[%clk 0:00:07.8]} 23. Ke3 {[%clk 0:02:27.4]}
23... Rb8 {[%clk 0:00:05.5]} 24. Rxa6 {[%clk 0:02:25.9]} 24... Rxa6 {[%clk
0:00:01.9]} 25. Rxb8 {[%clk 0:02:25.2]} 25... Ra3+ {[%clk 0:00:02.8]} 26. Ke2
{[%clk 0:02:22.9]} 26... a5 {[%clk 0:00:03.7]} 27. Rb7 {[%clk 0:02:19.8]} 27...
Ra2+ {[%clk 0:00:04.2]} 28. Ke3 {[%clk 0:02:19.5]} 1-0

[Event "Early-Titled-Tuesday-Blitz-July-09-2024"]
[Site "Chess.com"]
[Date "2024.07.09"]
[Round "5"]
[White "rdarruda"]
[Black "Byniolus"]
[Result "0-1"]
[WhiteElo "2566"]
[BlackElo "2796"]
[TimeControl "180+1"]
[EndTime "8:55:47 PDT"]
[Termination "Byniolus won by resignation"]

1. d4 {[%clk 0:02:54.7]} 1... d6 {[%clk 0:02:59.8]} 2. e4 {[%clk 0:02:54.1]}
2... Nf6 {[%clk 0:02:59.5]} 3. Nc3 {[%clk 0:02:53.8]} 3... c6 {[%clk 0:02:59.7]}
4. Bg5 {[%clk 0:02:53.2]} 4... Qb6 {[%clk 0:02:58.9]} 5. Rb1 {[%clk 0:02:49.2]}
5... e5 {[%clk 0:02:57.1]} 6. Nf3 {[%clk 0:02:48]} 6... Nbd7 {[%clk 0:02:56.4]}
7. Qd2 {[%clk 0:02:47.6]} 7... Be7 {[%clk 0:02:55.6]} 8. Be2 {[%clk 0:02:46.7]}
8... O-O {[%clk 0:02:55.4]} 9. O-O {[%clk 0:02:46.5]} 9... Re8 {[%clk
0:02:55.6]} 10. Rfe1 {[%clk 0:02:45.7]} 10... h6 {[%clk 0:02:53.7]} 11. Bh4
{[%clk 0:02:43.5]} 11... Bf8 {[%clk 0:02:39.1]} 12. Bf1 {[%clk 0:02:43]} 12...
Qc7 {[%clk 0:02:33.3]} 13. Bg3 {[%clk 0:02:41.2]} 13... b5 {[%clk 0:02:32.2]}
14. a3 {[%clk 0:02:39.2]} 14... Bb7 {[%clk 0:02:31.2]} 15. d5 {[%clk 0:02:29]}
15... a6 {[%clk 0:02:26.2]} 16. dxc6 {[%clk 0:02:26.5]} 16... Bxc6 {[%clk
0:02:24.4]} 17. Rbc1 {[%clk 0:02:16.9]} 17... Nb6 {[%clk 0:02:21.1]} 18. Bd3
{[%clk 0:02:09.4]} 18... Qb7 {[%clk 0:02:12.2]} 19. Qe2 {[%clk 0:02:06.6]} 19...
Nfd7 {[%clk 0:02:05.6]} 20. Nd2 {[%clk 0:01:55]} 20... Nc5 {[%clk 0:02:05.3]}
21. f4 {[%clk 0:01:52.5]} 21... exf4 {[%clk 0:01:54.4]} 22. Bxf4 {[%clk
0:01:53.4]} 22... d5 {[%clk 0:01:54.4]} 23. e5 {[%clk 0:01:49.8]} 23... Nc4
{[%clk 0:01:47.2]} 24. Nf3 {[%clk 0:01:44.4]} 24... Nxb2 {[%clk 0:01:42.8]} 25.
Kh1 {[%clk 0:01:38.2]} 25... d4 {[%clk 0:01:29.1]} 26. Ne4 {[%clk 0:01:32]}
26... Nxe4 {[%clk 0:01:20.7]} 27. Bxe4 {[%clk 0:01:32.9]} 27... Bxe4 {[%clk
0:01:21.3]} 28. Qxe4 {[%clk 0:01:32.7]} 28... Qxe4 {[%clk 0:01:22.2]} 29. Rxe4
{[%clk 0:01:32.4]} 29... d3 {[%clk 0:01:19.1]} 30. cxd3 {[%clk 0:01:04]} 30...
Nxd3 {[%clk 0:01:16.8]} 31. Bg3 {[%clk 0:01:04.5]} 31... Nxc1 {[%clk 0:01:16.6]}
0-1

[Event "Early-Titled-Tuesday-Blitz-July-09-2024"]
[Site "Chess.com"]
[Date "2024.07.09"]
[Round "5"]
[White "GMMikhailKazakov"]
[Black "klauser63"]
[Result "1-0"]
[WhiteElo "2513"]
[BlackElo "2316"]
[TimeControl "180+1"]
[EndTime "8:56:03 PDT"]
[Termination "GMMikhailKazakov won by resignation"]

1. e4 {[%clk 0:02:50.7]} 1... e5 {[%clk 0:02:59.2]} 2. Nf3 {[%clk 0:02:50.4]}
2... Nc6 {[%clk 0:02:59.5]} 3. Bb5 {[%clk 0:02:49.9]} 3... a6 {[%clk 0:02:58.8]}
4. Ba4 {[%clk 0:02:47.6]} 4... Nf6 {[%clk 0:02:59]} 5. O-O {[%clk 0:02:45.4]}
5... d6 {[%clk 0:02:59.2]} 6. Re1 {[%clk 0:02:43.1]} 6... Bd7 {[%clk 0:02:59.3]}
7. c3 {[%clk 0:02:42.1]} 7... g6 {[%clk 0:02:59.2]} 8. d4 {[%clk 0:02:39.9]}
8... Bg7 {[%clk 0:02:59]} 9. Nbd2 {[%clk 0:02:22.1]} 9... O-O {[%clk 0:02:54.1]}
10. Nf1 {[%clk 0:02:19.6]} 10... Nh5 {[%clk 0:02:54]} 11. Ne3 {[%clk 0:02:09.5]}
11... Nf4 {[%clk 0:02:44.7]} 12. Nd5 {[%clk 0:02:07.6]} 12... Ne6 {[%clk
0:02:44.6]} 13. Be3 {[%clk 0:01:56.3]} 13... Kh8 {[%clk 0:02:31.2]} 14. Bc2
{[%clk 0:01:46.8]} 14... Ne7 {[%clk 0:02:21.7]} 15. dxe5 {[%clk 0:01:39.7]}
15... dxe5 {[%clk 0:02:20.6]} 16. Bb3 {[%clk 0:01:34.5]} 16... c6 {[%clk
0:02:16.1]} 17. Nb6 {[%clk 0:01:30.7]} 17... Be8 {[%clk 0:01:55.8]} 18. Nxa8
{[%clk 0:01:28.1]} 18... Qxa8 {[%clk 0:01:56.7]} 19. Bxe6 {[%clk 0:01:27]} 19...
fxe6 {[%clk 0:01:57.6]} 20. Bc5 {[%clk 0:01:26.4]} 20... Rf7 {[%clk 0:01:54.6]}
21. Ng5 {[%clk 0:01:23.2]} 21... Ng8 {[%clk 0:01:52]} 22. Nxf7+ {[%clk
0:01:20.6]} 22... Bxf7 {[%clk 0:01:52.9]} 23. Qd7 {[%clk 0:01:16.8]} 23... Nh6
{[%clk 0:01:46.8]} 24. Rad1 {[%clk 0:01:13]} 24... Bg8 {[%clk 0:01:43.9]} 25.
Qc7 {[%clk 0:01:07.3]} 25... Qe8 {[%clk 0:01:31]} 26. Rd8 {[%clk 0:01:02.3]}
26... Qf7 {[%clk 0:01:30.7]} 27. Qxf7 {[%clk 0:01:00.8]} 27... Nxf7 {[%clk
0:01:31.6]} 28. Rb8 {[%clk 0:01:00.6]} 28... b5 {[%clk 0:01:30.8]} 29. Rd1
{[%clk 0:00:57.7]} 29... h5 {[%clk 0:01:26.1]} 30. f3 {[%clk 0:00:57.6]} 30...
h4 {[%clk 0:01:26.1]} 31. Rd7 {[%clk 0:00:55]} 31... Kh7 {[%clk 0:01:24.3]} 32.
Rbb7 {[%clk 0:00:54.7]} 32... Bh6 {[%clk 0:01:22.5]} 33. Rxf7+ {[%clk
0:00:53.7]} 33... Bxf7 {[%clk 0:01:23]} 34. Rxf7+ {[%clk 0:00:54.3]} 34... Kg8
{[%clk 0:01:23.9]} 35. Rc7 {[%clk 0:00:53.8]} 1-0

[Event "Early-Titled-Tuesday-Blitz-July-09-2024"]
[Site "Chess.com"]
[Date "2024.07.09"]
[Round "5"]
[White "Gnechko_Ruslan"]
[Black "Veleamater"]
[Result "0-1"]
[WhiteElo "2517"]
[BlackElo "2416"]
[TimeControl "180+1"]
[EndTime "8:56:07 PDT"]
[Termination "Veleamater won by resignation"]

1. d4 {[%clk 0:03:00.9]} 1... d6 {[%clk 0:03:00.9]} 2. e4 {[%clk 0:03:00.1]}
2... g6 {[%clk 0:03:01.6]} 3. Nf3 {[%clk 0:02:59.7]} 3... Bg7 {[%clk 0:03:01.9]}
4. Bd3 {[%clk 0:03:00.1]} 4... Nf6 {[%clk 0:03:02.4]} 5. O-O {[%clk 0:02:59.7]}
5... O-O {[%clk 0:03:02.3]} 6. c3 {[%clk 0:02:59.8]} 6... Nc6 {[%clk 0:03:02.5]}
7. Re1 {[%clk 0:02:59.6]} 7... e5 {[%clk 0:03:02.3]} 8. h3 {[%clk 0:02:57.8]}
8... h6 {[%clk 0:03:02.4]} 9. a4 {[%clk 0:02:57.7]} 9... Nd7 {[%clk 0:02:57.8]}
10. d5 {[%clk 0:02:57.1]} 10... Ne7 {[%clk 0:02:57]} 11. c4 {[%clk 0:02:57]}
11... f5 {[%clk 0:02:56.5]} 12. Nc3 {[%clk 0:02:57.6]} 12... f4 {[%clk
0:02:50.5]} 13. Nh2 {[%clk 0:02:56.3]} 13... Nf6 {[%clk 0:02:48.4]} 14. Be2
{[%clk 0:02:56.7]} 14... h5 {[%clk 0:02:48.3]} 15. h4 {[%clk 0:02:51.2]} 15...
Rf7 {[%clk 0:02:44.8]} 16. b4 {[%clk 0:02:48.4]} 16... Bf8 {[%clk 0:02:44.6]}
17. c5 {[%clk 0:02:48]} 17... Rg7 {[%clk 0:02:43]} 18. cxd6 {[%clk 0:02:47.6]}
18... cxd6 {[%clk 0:02:42.7]} 19. Ba3 {[%clk 0:02:47.7]} 19... g5 {[%clk
0:02:39.1]} 20. hxg5 {[%clk 0:02:47.4]} 20... Rxg5 {[%clk 0:02:38.6]} 21. Kh1
{[%clk 0:02:47.9]} 21... Bg4 {[%clk 0:02:36.4]} 22. f3 {[%clk 0:02:47.6]} 22...
Bd7 {[%clk 0:02:31.3]} 23. Rc1 {[%clk 0:02:46.5]} 23... Ne8 {[%clk 0:02:31]} 24.
Nb5 {[%clk 0:02:43.6]} 24... a6 {[%clk 0:02:25.8]} 25. Nc3 {[%clk 0:02:41.3]}
25... Ng6 {[%clk 0:02:23.5]} 26. Bf1 {[%clk 0:02:33.8]} 26... Rg3 {[%clk
0:02:22.4]} 27. Rc2 {[%clk 0:02:15]} 27... Qg5 {[%clk 0:02:17.9]} 28. b5 {[%clk
0:02:15.2]} 28... h4 {[%clk 0:02:11.6]} 29. bxa6 {[%clk 0:02:08]} 29... bxa6
{[%clk 0:02:10.2]} 30. Rb2 {[%clk 0:02:02.1]} 30... h3 {[%clk 0:02:07.5]} 31.
Ree2 {[%clk 0:01:53.1]} 31... Nh4 {[%clk 0:02:06.1]} 32. Rf2 {[%clk 0:01:36]}
32... Rc8 {[%clk 0:02:04]} 33. Nb1 {[%clk 0:01:22.4]} 33... Nf6 {[%clk
0:01:38.1]} 34. Qe2 {[%clk 0:01:11.7]} 34... Nh5 {[%clk 0:01:30.8]} 35. Ng4
{[%clk 0:01:08.9]} 35... hxg2+ {[%clk 0:01:29.4]} 36. Bxg2 {[%clk 0:01:08.5]}
36... Rxg4 {[%clk 0:01:29.2]} 37. fxg4 {[%clk 0:01:07.1]} 37... Ng3+ {[%clk
0:01:29.3]} 38. Kg1 {[%clk 0:01:06.7]} 38... Rc1+ {[%clk 0:01:21.9]} 39. Rf1
{[%clk 0:01:05.5]} 39... Nxe2+ {[%clk 0:01:19.8]} 40. Rxe2 {[%clk 0:01:05.1]}
40... f3 {[%clk 0:01:17.3]} 0-1

[Event "Early-Titled-Tuesday-Blitz-July-09-2024"]
[Site "Chess.com"]
[Date "2024.07.09"]
[Round "5"]
[White "Hirna2005"]
[Black "HypeMan111"]
[Result "0-1"]
[WhiteElo "2412"]
[BlackElo "2299"]
[TimeControl "180+1"]
[EndTime "8:56:20 PDT"]
[Termination "HypeMan111 won by resignation"]

1. e4 {[%clk 0:03:00.9]} 1... c5 {[%clk 0:02:59.7]} 2. Nf3 {[%clk 0:02:59.6]}
2... d6 {[%clk 0:03:00]} 3. c3 {[%clk 0:02:59.5]} 3... Nf6 {[%clk 0:02:58.8]} 4.
h3 {[%clk 0:02:59.7]} 4... Nc6 {[%clk 0:02:36.4]} 5. Bd3 {[%clk 0:02:59.2]} 5...
g6 {[%clk 0:02:28.5]} 6. O-O {[%clk 0:02:58.8]} 6... Bg7 {[%clk 0:02:21.8]} 7.
Re1 {[%clk 0:02:58.8]} 7... O-O {[%clk 0:02:20.9]} 8. Bf1 {[%clk 0:02:57.7]}
8... e5 {[%clk 0:02:18.8]} 9. d4 {[%clk 0:02:55.9]} 9... exd4 {[%clk 0:02:18]}
10. cxd4 {[%clk 0:02:56]} 10... cxd4 {[%clk 0:02:18.2]} 11. Nxd4 {[%clk
0:02:55.5]} 11... d5 {[%clk 0:02:12.6]} 12. Nxc6 {[%clk 0:02:39.7]} 12... bxc6
{[%clk 0:02:13.5]} 13. e5 {[%clk 0:02:37.8]} 13... Ne4 {[%clk 0:02:09]} 14. Bf4
{[%clk 0:02:36.1]} 14... Qb6 {[%clk 0:01:58.1]} 15. Qc2 {[%clk 0:02:32.1]} 15...
Be6 {[%clk 0:01:06.3]} 16. Bd3 {[%clk 0:02:29.3]} 16... Rab8 {[%clk 0:01:05.2]}
17. Re2 {[%clk 0:02:12.4]} 17... Nc5 {[%clk 0:01:02.6]} 18. Nc3 {[%clk
0:02:06.1]} 18... Qxb2 {[%clk 0:00:52]} 19. Qxb2 {[%clk 0:02:04.3]} 19... Rxb2
{[%clk 0:00:52.6]} 20. Rxb2 {[%clk 0:01:28]} 20... Nxd3 {[%clk 0:00:52.2]} 21.
Rb7 {[%clk 0:01:25.8]} 21... Nxf4 {[%clk 0:00:49.9]} 22. Re1 {[%clk 0:01:22.5]}
22... Nd3 {[%clk 0:00:46.9]} 23. Re2 {[%clk 0:01:22.7]} 23... Bxe5 {[%clk
0:00:35]} 24. Rxa7 {[%clk 0:01:19.4]} 24... Bxc3 {[%clk 0:00:33.6]} 25. Ra3
{[%clk 0:01:16.5]} 25... d4 {[%clk 0:00:32.8]} 26. Kf1 {[%clk 0:01:11.4]} 26...
Bc4 {[%clk 0:00:30.1]} 27. Ra4 {[%clk 0:01:09.9]} 27... Nb4 {[%clk 0:00:29.1]}
0-1

[Event "Early-Titled-Tuesday-Blitz-July-09-2024"]
[Site "Chess.com"]
[Date "2024.07.09"]
[Round "5"]
[White "JEHUBNER"]
[Black "SujanaLohani"]
[Result "0-1"]
[WhiteElo "2016"]
[BlackElo "2366"]
[TimeControl "180+1"]
[EndTime "8:56:21 PDT"]
[Termination "SujanaLohani won by resignation"]

1. e4 {[%clk 0:03:00.9]} 1... c5 {[%clk 0:02:58.2]} 2. c3 {[%clk 0:03:00.6]}
2... Nf6 {[%clk 0:02:51.9]} 3. e5 {[%clk 0:02:59.6]} 3... Nd5 {[%clk 0:02:51.7]}
4. d4 {[%clk 0:03:00.3]} 4... cxd4 {[%clk 0:02:50.4]} 5. cxd4 {[%clk 0:03:01.2]}
5... Nc6 {[%clk 0:02:49]} 6. Nf3 {[%clk 0:03:01.5]} 6... d6 {[%clk 0:02:48.3]}
7. exd6 {[%clk 0:03:02.3]} 7... Qxd6 {[%clk 0:02:47.1]} 8. Nc3 {[%clk
0:03:03.2]} 8... Bg4 {[%clk 0:02:44.5]} 9. Be2 {[%clk 0:03:03.3]} 9... e6 {[%clk
0:02:42.9]} 10. O-O {[%clk 0:03:03.3]} 10... Be7 {[%clk 0:02:42.7]} 11. h3
{[%clk 0:03:03.5]} 11... Bh5 {[%clk 0:02:41.6]} 12. Ne4 {[%clk 0:02:54.3]} 12...
Qc7 {[%clk 0:02:38.7]} 13. Be3 {[%clk 0:02:51.9]} 13... O-O {[%clk 0:02:36.1]}
14. Rc1 {[%clk 0:02:44.3]} 14... Rfd8 {[%clk 0:02:32.4]} 15. Ne5 {[%clk
0:02:30.6]} 15... Bg6 {[%clk 0:02:19.9]} 16. Nxc6 {[%clk 0:02:28.8]} 16... Bxe4
{[%clk 0:02:16.8]} 17. Nxe7+ {[%clk 0:02:27.5]} 17... Qxe7 {[%clk 0:02:17.7]}
18. Bf3 {[%clk 0:02:24.6]} 18... Bg6 {[%clk 0:02:10]} 19. Qe2 {[%clk 0:02:20.3]}
19... Rac8 {[%clk 0:02:07.3]} 20. Bh5 {[%clk 0:01:56.2]} 20... Nxe3 {[%clk
0:02:03.2]} 21. fxe3 {[%clk 0:01:53.3]} 21... e5 {[%clk 0:01:54.6]} 22. Rxc8
{[%clk 0:01:43.6]} 22... Rxc8 {[%clk 0:01:55.5]} 23. d5 {[%clk 0:01:42.2]} 23...
Rc2 {[%clk 0:01:52]} 24. Qg4 {[%clk 0:01:36.6]} 24... f5 {[%clk 0:01:48.6]} 25.
Qd1 {[%clk 0:01:33.6]} 25... Rxb2 {[%clk 0:01:48]} 26. Bxg6 {[%clk 0:01:32.7]}
26... hxg6 {[%clk 0:01:48.3]} 27. d6 {[%clk 0:01:33]} 27... Qd7 {[%clk
0:01:44.6]} 28. Qd5+ {[%clk 0:01:33.5]} 28... Kh7 {[%clk 0:01:42.3]} 29. Qxe5
{[%clk 0:01:34.1]} 29... Rxa2 {[%clk 0:01:38.8]} 30. Rf4 {[%clk 0:01:33.9]}
30... Rd2 {[%clk 0:01:30.4]} 31. Rh4+ {[%clk 0:01:32]} 31... Kg8 {[%clk
0:01:28.3]} 32. Qc5 {[%clk 0:01:03.3]} 32... Rxd6 {[%clk 0:01:25.7]} 33. Qxa7
{[%clk 0:01:03.3]} 33... Rd1+ {[%clk 0:01:22.3]} 34. Kh2 {[%clk 0:01:03]} 34...
Qd6+ {[%clk 0:01:21.6]} 35. Rf4 {[%clk 0:00:48.2]} 35... g5 {[%clk 0:01:21.1]}
36. Qa2+ {[%clk 0:00:43.5]} 36... Kh7 {[%clk 0:01:20.2]} 0-1

[Event "Early-Titled-Tuesday-Blitz-July-09-2024"]
[Site "Chess.com"]
[Date "2024.07.09"]
[Round "5"]
[White "Shankland"]
[Black "Pavlov_Sergey"]
[Result "1-0"]
[WhiteElo "2883"]
[BlackElo "2662"]
[TimeControl "180+1"]
[EndTime "8:56:22 PDT"]
[Termination "Shankland won on time"]

1. e4 {[%clk 0:03:00.9]} 1... c5 {[%clk 0:02:58.6]} 2. Nf3 {[%clk 0:02:59.8]}
2... Nf6 {[%clk 0:02:57.9]} 3. d3 {[%clk 0:02:54.1]} 3... d5 {[%clk 0:02:56.3]}
4. Nbd2 {[%clk 0:02:53.5]} 4... Nc6 {[%clk 0:02:56.5]} 5. g3 {[%clk 0:02:52.9]}
5... g6 {[%clk 0:02:56.9]} 6. Bg2 {[%clk 0:02:51.9]} 6... Bg7 {[%clk 0:02:57.4]}
7. O-O {[%clk 0:02:51.7]} 7... O-O {[%clk 0:02:57.8]} 8. exd5 {[%clk 0:02:50.8]}
8... Nxd5 {[%clk 0:02:57.2]} 9. Nb3 {[%clk 0:02:51]} 9... b6 {[%clk 0:02:45.9]}
10. d4 {[%clk 0:02:50.2]} 10... c4 {[%clk 0:02:38.2]} 11. Nbd2 {[%clk
0:02:50.3]} 11... c3 {[%clk 0:02:30.5]} 12. Ne4 {[%clk 0:02:50.3]} 12... cxb2
{[%clk 0:02:08]} 13. Bxb2 {[%clk 0:02:50.3]} 13... Bb7 {[%clk 0:02:08.7]} 14. c4
{[%clk 0:02:45.4]} 14... Nf6 {[%clk 0:02:03.3]} 15. Ned2 {[%clk 0:02:36.9]}
15... Na5 {[%clk 0:01:38.7]} 16. d5 {[%clk 0:02:35.4]} 16... Rc8 {[%clk
0:01:35]} 17. Rc1 {[%clk 0:02:34.3]} 17... Ba6 {[%clk 0:01:17.6]} 18. Ne5 {[%clk
0:02:28.2]} 18... Nd7 {[%clk 0:01:09.6]} 19. Nc6 {[%clk 0:02:23.6]} 19... Nxc6
{[%clk 0:01:06.4]} 20. Bxg7 {[%clk 0:02:24]} 20... Kxg7 {[%clk 0:01:06.2]} 21.
dxc6 {[%clk 0:02:24.3]} 21... Nc5 {[%clk 0:01:02.8]} 22. Nb3 {[%clk 0:02:19]}
22... Nd3 {[%clk 0:00:30]} 23. Rc3 {[%clk 0:01:53.7]} 23... Ne5 {[%clk
0:00:29.7]} 24. Qa1 {[%clk 0:01:53.8]} 24... f6 {[%clk 0:00:28.7]} 25. Rd1
{[%clk 0:01:52.9]} 25... Qc7 {[%clk 0:00:24]} 26. c5 {[%clk 0:01:53.3]} 26...
Nxc6 {[%clk 0:00:05.4]} 27. cxb6 {[%clk 0:01:47.8]} 27... Qxb6 {[%clk
0:00:05.7]} 28. Nc5 {[%clk 0:01:47.6]} 28... Rf7 {[%clk 0:00:03.4]} 29. Nxa6
{[%clk 0:01:38.7]} 29... Qxa6 {[%clk 0:00:03.6]} 30. Rdc1 {[%clk 0:01:39.4]} 1-0